[Event "73rd Greek Championship 2024"]
[Site "Thessaloniki"]
[Date "2024.12.06"]
[Round "5.5"]
[White "Kolytas, Spiridon"]
[Black "Hadzimanolis, Antonios"]
[Result "1/2-1/2"]
[Annotator "RC"]
[ECO "A13"]
[WhiteElo "1946"]
[BlackElo "2159"]
[PlyCount "48"]
[EventDate "2024.12.02"]
[EventType "tourn"]
[EventCountry "GRE"]
[SourceTitle "playchess.com"]
[Source "ChessBase"]
[SourceQuality "1"]
[TimeControl "40/5400+30:1800+30"]

1. Nf3 {[%emt 0:00:11]} Nf6 {[%emt 0:00:13]} 2. c4 {[%emt 0:00:08]} e6 {[%emt 0:00:06]} 3. g3 {[%emt 0:00:13]} d5 {[%emt 0:00:26]} 4. Bg2 {[%emt 0:00:14]} dxc4 {[%emt 0:00:23]} 5. Qa4+ {[%emt 0:00:14]} Bd7 {[%emt 0:00:58]} 6. Qxc4 {[%emt 0:00:09]} c5 {[%emt 0:00:21]} 7. Ne5 {[%emt 0:00:22]} Qc8 {[%emt 0:00:08]} 8. O-O {[%emt 0:01:01]} Nc6 {[%emt 0:07:02]} 9. Nxd7 {[%emt 0:00:25]} Qxd7 {[%emt 0:00:10]} 10. Nc3 {[%emt 0:01:17]} Be7 {[%emt 0:00:33]} 11. Qa4 {[%emt 0:00:22]} Rc8 {[%emt 0:01:17]} 12. d3 {[%emt 0:00:15]} O-O {[%emt 0:02:33]} 13. Be3 {[%emt 0:00:37]} Rfd8 {[%emt 0:09:07]} 14. Rac1 {[%emt 0:00:48]} b6 {[%emt 0:04:33]} 15. Rfd1 {[%emt 0:00:40]} Nd5 {[%emt 0:17:21]} 16. Nxd5 {[%emt 0:00:41]} exd5 {[%emt 0:01:16]} 17. d4 {[%emt 0:03:35]} c4 {[%emt 0:05:54]} 18. b3 {[%emt 0:00:37]} b5 {[%emt 0:00:29]} 19. Qxb5 {[%emt 0:03:36]} Rb8 {[%emt 0:00:23]} 20. Qa4 {[%emt 0:03:49]} Rb4 {[%emt 0:02:27]} 21. Qa6 {[%emt 0:01:40]} Rb6 {[%emt 0:00:56]} 22. Qa4 {[%emt 0:00:26]} Rb4 {[%emt 0:01:12]} 23. Qa6 {[%emt 0:00:08]} Rb6 {[%emt 0:04:10]} 24. Qa4 {[%emt 0:00:06]} Rb4 {[%emt 0:40:32]} 1/2-1/2

[Event "73rd Greek Championship 2024"]
[Site "Thessaloniki"]
[Date "2024.12.07"]
[Round "6.1"]
[White "Patrelakis, Evaggelos"]
[Black "Hadzimanolis, Antonios"]
[Result "1-0"]
[Annotator "ChessBase"]
[ECO "C55"]
[WhiteElo "2437"]
[BlackElo "2159"]
[PlyCount "119"]
[EventDate "2024.12.02"]
[EventType "tourn"]
[EventCountry "GRE"]
[SourceTitle "playchess.com"]
[Source "ChessBase"]
[SourceQuality "1"]
[TimeControl "40/5400+30:1800+30"]

1. e4 {[%emt 0:00:08]} e5 {[%emt 0:00:08]} 2. Nf3 {[%emt 0:00:09]} Nc6 {[%emt 0:00:09]} 3. Bc4 {[%emt 0:00:22]} Nf6 {[%emt 0:00:09]} 4. d3 {[%emt 0:00:15]} h6 {[%emt 0:00:12]} 5. a4 {[%emt 0:01:10]} d6 {[%emt 0:00:23]} 6. O-O {[%emt 0:01:44]} g5 {[%emt 0:00:48]} 7. c3 {[%emt 0:02:56]} Bg7 {[%emt 0:00:08]} 8. b4 {[%emt 0:01:56]} O-O {[%emt 0:00:30]} 9. b5 {[%emt 0:22:43]} Ne7 {[%emt 0:00:31]} 10. Ba3 {[%emt 0:06:04]} Ng6 {[%emt 0:01:43]} 11. Nbd2 {[%emt 0:02:57]} Re8 {[%emt 0:08:00]} 12. Qc2 {[%emt 0:02:56]} Qd7 {[%emt 0:14:43]} 13. Rfd1 {[%emt 0:03:57]} Nf4 {[%emt 0:04:17]} 14. Ne1 {[%emt 0:01:17]} Qg4 {[%emt 0:09:06]} 15. Nf1 {[%emt 0:03:05]} d5 {[%emt 0:14:57]} 16. Ne3 {[%emt 0:07:41]} Nh3+ {[%emt 0:00:52]} 17. Kf1 {[%emt 0:16:53]} Qf4 {[%emt 0:00:26]} 18. g3 {[%emt 0:02:05]} Qxf2+ {[%emt 0:00:07]} 19. Qxf2 {[%emt 0:00:04]} Nxf2 {[%emt 0:00:05]} 20. Kxf2 {[%emt 0:00:16]} dxc4 {[%emt 0:00:07]} 21. Nxc4 {[%emt 0:00:09]} Be6 {[%emt 0:01:40]} 22. Na5 {[%emt 0:03:48]} b6 {[%emt 0:03:59]} 23. Nc6 {[%emt 0:00:02]} Ng4+ {[%emt 0:00:13]} 24. Kg1 {[%emt 0:00:29]} a6 {[%emt 0:00:32]} 25. c4 {[%emt 0:02:24]} Ne3 {[%emt 0:09:28]} 26. Rdc1 {[%emt 0:03:07]} axb5 {[%emt 0:05:08]} 27. axb5 {[%emt 0:00:14]} Bd7 {[%emt 0:00:36]} 28. Bb4 {[%emt 0:04:28]} Bxc6 {[%emt 0:07:21]} 29. bxc6 {[%emt 0:00:02]} Rxa1 {[%emt 0:00:14]} 30. Rxa1 {[%emt 0:00:06]} Re6 {[%emt 0:00:06]} 31. Bd2 {[%emt 0:04:03]} Ng4 {[%emt 0:00:03]} 32. Ra8+ {[%emt 0:02:52]} Kh7 {[%emt 0:00:03]} 33. h3 {[%emt 0:02:50]} Nf6 {[%emt 0:00:05]} 34. Bc3 {[%emt 0:00:05]} Nh5 {[%emt 0:10:07]} 35. Kg2 {[%emt 0:00:01]} Rxc6 {[%emt 0:00:10]} 36. Nc2 {[%emt 0:00:47]} Bf6 {[%emt 0:04:02]} 37. Rc8 {[%emt 0:02:11]} b5 {[%emt 0:03:02]} 38. Nb4 {[%emt 0:01:25]} Rc5 {[%emt 0:00:01]} 39. Na6 {[%emt 0:00:33]} Rc6 {[%emt 0:00:01]} 40. Nb4 {[%emt 0:00:00]} Rc5 {[%emt 0:00:00]} 41. Na6 {[%emt 0:18:44]} Rc6 {[%emt 0:00:08]} 42. cxb5 {[%emt 0:04:13]} Rxc3 {[%emt 0:01:47]} 43. b6 {[%emt 0:00:07]} Rxd3 {[%emt 0:01:23]} 44. b7 {[%emt 0:01:29]} Rxg3+ {[%emt 0:00:23]} 45. Kh2 {[%emt 0:00:15]} Rb3 {[%emt 0:01:23]} 46. b8=Q {[%emt 0:00:07]} Rxb8 {[%emt 0:00:06]} 47. Nxb8 {[%emt 0:00:16]} Kg7 {[%emt 0:10:37]} 48. Rxc7 {[%emt 0:00:56]} Bd8 {[%emt 0:00:02]} 49. Rb7 {[%emt 0:00:51]} Nf4 {[%emt 0:08:47]} 50. Nc6 {[%emt 0:01:07]} Bf6 {[%emt 0:01:51]} 51. Rb5 {[%emt 0:00:46]} Nd3 {[%emt 0:00:57]} 52. Kg3 {[%emt 0:00:16]} h5 {[%emt 0:00:14]} 53. Ra5 {[%emt 0:01:16]} Kg6 {[%emt 0:00:47]} 54. Rd5 {[%emt 0:00:32]} h4+ {[%emt 0:00:37]} 55. Kf3 {[%emt 0:00:22]} Nf4 {[%emt 0:00:25]} 56. Rd6 {[%emt 0:00:07]} Nxh3 {[%emt 0:03:01]} 57. Ne7+ {[%emt 0:00:53]} Kg7 {[%emt 0:00:10]} 58. Nd5 {[%emt 0:00:36]} Ng1+ {[%emt 0:05:20]} 59. Kg2 {[%emt 0:00:42]} Ne2 {[%emt 0:00:28]} 60. Nxf6 {[%emt 0:00:17]} 1-0

[Event "73rd Greek Championship 2024"]
[Site "Thessaloniki"]
[Date "2024.12.07"]
[Round "6.2"]
[White "Kalogridis, Antonios"]
[Black "Kolytas, Spiridon"]
[Result "1-0"]
[Annotator "ChessBase"]
[ECO "D00"]
[WhiteElo "2333"]
[BlackElo "1946"]
[PlyCount "103"]
[EventDate "2024.12.02"]
[EventType "tourn"]
[EventCountry "GRE"]
[SourceTitle "playchess.com"]
[Source "ChessBase"]
[SourceQuality "1"]
[TimeControl "40/5400+30:1800+30"]

1. d4 {[%emt 0:00:03]} Nf6 {[%emt 0:00:07]} 2. Nc3 {[%emt 0:00:03]} d5 {[%emt 0:00:13]} 3. Bf4 {[%emt 0:00:04]} a6 {[%emt 0:00:57]} 4. e3 {[%emt 0:00:08]} c5 {[%emt 0:00:43]} 5. dxc5 {[%emt 0:01:58]} e6 {[%emt 0:00:40]} 6. b4 {[%emt 0:00:20]} b6 {[%emt 0:03:08]} 7. Na4 {[%emt 0:07:55]} bxc5 {[%emt 0:01:21]} 8. Nxc5 {[%emt 0:00:05]} Bxc5 {[%emt 0:00:40]} 9. bxc5 {[%emt 0:00:04]} Qa5+ {[%emt 0:07:41]} 10. Qd2 {[%emt 0:00:06]} Qxc5 {[%emt 0:00:12]} 11. Bd3 {[%emt 0:00:27]} O-O {[%emt 0:01:50]} 12. Nf3 {[%emt 0:01:25]} Nc6 {[%emt 0:03:00]} 13. Rb1 {[%emt 0:03:06]} Re8 {[%emt 0:08:18]} 14. Nd4 {[%emt 0:03:04]} e5 {[%emt 0:05:34]} 15. Nb3 {[%emt 0:00:04]} Qe7 {[%emt 0:03:42]} 16. Bg5 {[%emt 0:00:08]} Be6 {[%emt 0:03:35]} 17. O-O {[%emt 0:01:02]} Rec8 {[%emt 0:06:01]} 18. f4 {[%emt 0:04:44]} Qa7 {[%emt 0:15:01]} 19. Bxf6 {[%emt 0:07:15]} gxf6 {[%emt 0:00:05]} 20. fxe5 {[%emt 0:00:04]} fxe5 {[%emt 0:00:45]} 21. Rf6 {[%emt 0:00:05]} Rab8 {[%emt 0:12:40]} 22. Rbf1 {[%emt 0:02:25]} Rb4 {[%emt 0:02:19]} 23. Kh1 {[%emt 0:04:49]} Rg4 {[%emt 0:01:06]} 24. Bf5 {[%emt 0:00:27]} Bxf5 {[%emt 0:02:54]} 25. R1xf5 {[%emt 0:00:22]} Rg7 {[%emt 0:03:13]} 26. c4 {[%emt 0:03:28]} Ne7 {[%emt 0:02:45]} 27. Rxe5 {[%emt 0:02:06]} Qc7 {[%emt 0:05:02]} 28. Rh5 {[%emt 0:08:58]} Qxc4 {[%emt 0:00:35]} 29. h3 {[%emt 0:00:48]} Rg6 {[%emt 0:01:30]} 30. Rf2 {[%emt 0:02:02]} Qe4 {[%emt 0:00:37]} 31. Kh2 {[%emt 0:02:18]} Qe6 {[%emt 0:02:24]} 32. Nd4 {[%emt 0:01:46]} Qd6+ {[%emt 0:00:42]} 33. Kh1 {[%emt 0:03:05]} Rb8 {[%emt 0:00:07]} 34. Rf1 {[%emt 0:00:11]} Qg3 {[%emt 0:02:19]} 35. Nf5 {[%emt 0:03:22]} Nxf5 {[%emt 0:00:07]} 36. Rhxf5 {[%emt 0:00:04]} Rf8 {[%emt 0:05:43]} 37. R1f4 {[%emt 0:00:26]} Rb8 {[%emt 0:00:27]} 38. Rxf7 {[%emt 0:04:47]} Rb1+ {[%emt 0:01:27]} 39. Rf1 {[%emt 0:00:05]} Rxf1+ {[%emt 0:00:00]} 40. Rxf1 {[%emt 0:00:00]} Qe5 {[%emt 0:00:00]} 41. Qb4 {[%emt 0:02:59]} Qe8 {[%emt 0:10:21]} 42. Qb7 {[%emt 0:01:54]} Rc6 {[%emt 0:06:42]} 43. Rf5 {[%emt 0:01:06]} h6 {[%emt 0:02:40]} 44. Rxd5 {[%emt 0:00:57]} Rf6 {[%emt 0:02:20]} 45. Rc5 {[%emt 0:04:36]} Qxe3 {[%emt 0:03:02]} 46. Rc8+ {[%emt 0:00:18]} Rf8 {[%emt 0:00:08]} 47. Rxf8+ {[%emt 0:00:02]} Kxf8 {[%emt 0:00:07]} 48. Qf3+ {[%emt 0:00:04]} Qxf3 {[%emt 0:00:27]} 49. gxf3 {[%emt 0:00:03]} Kf7 {[%emt 0:00:27]} 50. Kg2 {[%emt 0:00:04]} Kf6 {[%emt 0:00:14]} 51. f4 {[%emt 0:00:04]} Kf5 {[%emt 0:00:14]} 52. Kf3 {[%emt 0:00:03]} 1-0

[Event "73rd Greek Championship 2024"]
[Site "Thessaloniki"]
[Date "2024.12.07"]
[Round "6.3"]
[White "Stamatiou, Rodolfos"]
[Black "Alexiadis, Hristos"]
[Result "0-1"]
[Annotator "ChessBase"]
[ECO "E92"]
[WhiteElo "2308"]
[BlackElo "2341"]
[PlyCount "80"]
[EventDate "2024.12.02"]
[EventType "tourn"]
[EventCountry "GRE"]
[SourceTitle "playchess.com"]
[Source "ChessBase"]
[SourceQuality "1"]
[TimeControl "40/5400+30:1800+30"]

1. d4 {[%emt 1:31:00]} Nf6 {[%emt 0:05:23]} 2. Nf3 {[%emt 0:00:00]} g6 {[%emt 0:00:31]} 3. c4 {[%emt 0:00:00]} Bg7 {[%emt 0:00:06]} 4. Nc3 {[%emt 0:00:00]} d6 {[%emt 0:00:26]} 5. e4 {[%emt 0:00:00]} O-O {[%emt 0:00:11]} 6. Be2 {[%emt 0:00:00]} e5 {[%emt 0:01:38]} 7. d5 {[%emt 0:00:00]} a5 {[%emt 0:00:57]} 8. Bg5 {[%emt 0:00:00]} h6 {[%emt 0:00:07]} 9. Bh4 {[%emt 0:00:00]} Qe8 {[%emt 0:01:49]} 10. Nd2 {[%emt 0:00:00]} Na6 {[%emt 0:04:00]} 11. O-O {[%emt 0:00:00]} Nh7 {[%emt 0:00:10]} 12. a3 {[%emt 0:00:00]} h5 {[%emt 0:01:08]} 13. f3 {[%emt 0:00:00]} Bd7 {[%emt 0:00:06]} 14. b3 {[%emt 0:00:00]} Bf6 {[%emt 0:08:29]} 15. Bf2 {[%emt 0:00:00]} Qe7 {[%emt 0:11:55]} 16. Kh1 {[%emt 0:00:00]} Bh4 {[%emt 0:03:34]} 17. Bg1 {[%emt 0:00:00]} Bg5 {[%emt 0:00:32]} 18. Rb1 {[%emt 0:00:00]} h4 {[%emt 0:09:56]} 19. b4 {[%emt 0:00:00]} axb4 {[%emt 0:02:15]} 20. axb4 {[%emt 0:00:00]} Bf4 {[%emt 0:04:17]} 21. c5 {[%emt 0:00:00]} dxc5 {[%emt 0:12:59]} 22. bxc5 {[%emt 0:00:00]} Nxc5 {[%emt 0:07:46]} 23. d6 {[%emt 0:00:00]} Qxd6 {[%emt 0:06:44]} 24. Nc4 {[%emt 0:00:00]} Qxd1 {[%emt 0:00:10]} 25. Bxd1 {[%emt 0:00:00]} b6 {[%emt 0:01:51]} 26. Nd5 {[%emt 0:00:00]} Be6 {[%emt 0:00:42]} 27. Bf2 {[%emt 0:00:00]} Rfd8 {[%emt 0:01:57]} 28. Nce3 {[%emt 0:00:00]} Bxe3 {[%emt 0:02:00]} 29. Nxe3 {[%emt 0:00:00]} g5 {[%emt 0:02:52]} 30. Be2 {[%emt 0:00:00]} Nd3 {[%emt 0:05:00]} 31. Bg1 {[%emt 0:00:00]} Ra2 {[%emt 0:00:41]} 32. Bxd3 {[%emt 0:00:00]} Rxd3 {[%emt 0:00:02]} 33. Rfc1 {[%emt 0:00:00]} Rd7 {[%emt 0:01:44]} 34. h3 {[%emt 0:00:00]} Nf8 {[%emt 0:01:15]} 35. Rc6 {[%emt 0:00:00]} Ng6 {[%emt 0:01:02]} 36. Rbc1 {[%emt 0:00:00]} Ra7 {[%emt 0:00:18]} 37. Bh2 {[%emt 0:00:00]} Kf8 {[%emt 0:02:46]} 38. Nf5 {[%emt 0:03:27]} Bxf5 {[%emt 0:00:37]} 39. exf5 {[%emt 0:00:01]} Ne7 {[%emt 0:00:15]} 40. Rf6 {[%emt 0:00:00]} Ra5 {[%emt 0:00:00]} 0-1

[Event "73rd Greek Championship 2024"]
[Site "Thessaloniki"]
[Date "2024.12.07"]
[Round "6.4"]
[White "Mitsis, Georgios"]
[Black "Tsaknakis, Zisis"]
[Result "1-0"]
[Annotator "ChessBase"]
[ECO "E94"]
[WhiteElo "2383"]
[BlackElo "2259"]
[PlyCount "119"]
[EventDate "2024.12.02"]
[EventType "tourn"]
[EventCountry "GRE"]
[SourceTitle "playchess.com"]
[Source "ChessBase"]
[SourceQuality "1"]
[TimeControl "40/5400+30:1800+30"]

1. d4 {[%emt 0:00:29]} Nf6 {[%emt 0:00:26]} 2. Nf3 {[%emt 0:00:09]} g6 {[%emt 0:00:09]} 3. c4 {[%emt 0:00:12]} Bg7 {[%emt 0:00:03]} 4. Nc3 {[%emt 0:00:07]} d6 {[%emt 0:00:17]} 5. e4 {[%emt 0:00:20]} O-O {[%emt 0:00:07]} 6. Be2 {[%emt 0:00:12]} Na6 {[%emt 0:00:03]} 7. Be3 {[%emt 0:00:39]} e5 {[%emt 0:00:10]} 8. O-O {[%emt 0:00:38]} Qe7 {[%emt 0:00:07]} 9. dxe5 {[%emt 0:03:26]} dxe5 {[%emt 0:01:56]} 10. Qc2 {[%emt 0:09:23]} Nb4 {[%emt 0:01:44]} 11. Qb1 {[%emt 0:01:21]} c5 {[%emt 0:08:06]} 12. Nd5 {[%emt 0:05:26]} Nbxd5 {[%emt 0:00:49]} 13. cxd5 {[%emt 0:01:24]} Ng4 {[%emt 0:07:37]} 14. Qc1 {[%emt 0:00:24]} Nxe3 {[%emt 0:07:58]} 15. Qxe3 {[%emt 0:00:14]} Bd7 {[%emt 0:02:17]} 16. Rfd1 {[%emt 0:01:00]} Qd6 {[%emt 0:07:18]} 17. a4 {[%emt 0:00:55]} a6 {[%emt 0:03:14]} 18. a5 {[%emt 0:02:12]} Bb5 {[%emt 0:05:57]} 19. Nd2 {[%emt 0:01:25]} Bh6 {[%emt 0:16:21]} 20. Qxh6 {[%emt 0:00:35]} Bxe2 {[%emt 0:00:02]} 21. Rdc1 {[%emt 0:01:23]} Rfc8 {[%emt 0:03:50]} 22. Ra3 {[%emt 0:05:32]} Rc7 {[%emt 0:09:44]} 23. Rac3 {[%emt 0:01:33]} Rac8 {[%emt 0:02:40]} 24. Qe3 {[%emt 0:00:31]} Bb5 {[%emt 0:00:18]} 25. Nc4 {[%emt 0:06:45]} Bxc4 {[%emt 0:00:06]} 26. Rxc4 {[%emt 0:00:04]} f5 {[%emt 0:08:24]} 27. f3 {[%emt 0:00:25]} fxe4 {[%emt 0:01:10]} 28. fxe4 {[%emt 0:00:30]} Rf7 {[%emt 0:00:36]} 29. b4 {[%emt 0:09:33]} Rcf8 {[%emt 0:00:22]} 30. bxc5 {[%emt 0:00:11]} Qf6 {[%emt 0:00:09]} 31. h3 {[%emt 0:03:31]} Qh4 {[%emt 0:03:51]} 32. R4c2 {[%emt 0:05:05]} Rf4 {[%emt 0:02:10]} 33. Re2 {[%emt 0:00:51]} Qd8 {[%emt 0:05:45]} 34. Qc3 {[%emt 0:00:28]} Qf6 {[%emt 0:00:56]} 35. Kh2 {[%emt 0:41:07]} Rf1 {[%emt 0:02:03]} 36. Rxf1 {[%emt 0:00:00]} Qxf1 {[%emt 0:00:02]} 37. Qe1 {[%emt 0:00:00]} Qf4+ {[%emt 0:01:19]} 38. Kg1 {[%emt 0:00:00]} Rc8 {[%emt 0:00:36]} 39. Rc2 {[%emt 0:00:00]} Qg5 {[%emt 0:00:44]} 40. c6 {[%emt 0:00:00]} bxc6 {[%emt 0:00:00]} 41. dxc6 {[%emt 0:00:00]} Qd8 {[%emt 0:02:43]} 42. Kh2 {[%emt 0:00:00]} Qd3 {[%emt 0:06:10]} 43. Rc1 {[%emt 0:00:00]} Qb3 {[%emt 0:07:24]} 44. Qd2 {[%emt 0:00:00]} Qf7 {[%emt 0:03:12]} 45. Qd5 {[%emt 0:00:00]} Kg7 {[%emt 0:05:59]} 46. Qxe5+ {[%emt 0:00:00]} Qf6 {[%emt 0:01:07]} 47. Qxf6+ {[%emt 0:00:00]} Kxf6 {[%emt 0:00:02]} 48. Rc5 {[%emt 0:00:00]} Ke7 {[%emt 0:04:21]} 49. e5 {[%emt 0:00:00]} Rc7 {[%emt 0:01:23]} 50. Kg3 {[%emt 0:00:00]} Kd8 {[%emt 0:00:03]} 51. Rd5+ {[%emt 0:00:00]} Kc8 {[%emt 0:00:07]} 52. Rd6 {[%emt 0:00:00]} Re7 {[%emt 0:00:40]} 53. Kf4 {[%emt 0:00:00]} Kc7 {[%emt 0:00:13]} 54. Rd7+ {[%emt 0:00:00]} Rxd7 {[%emt 0:00:02]} 55. cxd7 {[%emt 0:00:00]} Kxd7 {[%emt 0:00:02]} 56. Ke4 {[%emt 0:00:00]} Ke6 {[%emt 0:00:56]} 57. Kd4 {[%emt 0:00:00]} g5 {[%emt 0:00:22]} 58. Ke4 {[%emt 0:00:00]} h6 {[%emt 0:00:11]} 59. g3 {[%emt 0:00:00]} h5 {[%emt 0:01:11]} 60. g4 {[%emt 0:00:00]} 1-0

[Event "73rd Greek Championship 2024"]
[Site "Thessaloniki"]
[Date "2024.12.07"]
[Round "6.5"]
[White "Kourkoulos-Arditis, Stamatis"]
[Black "Alexakis, Dimitris"]
[Result "1-0"]
[Annotator "ChessBase"]
[ECO "B47"]
[WhiteElo "2575"]
[BlackElo "2520"]
[PlyCount "131"]
[EventDate "2024.12.02"]
[EventType "tourn"]
[EventCountry "GRE"]
[SourceTitle "playchess.com"]
[Source "ChessBase"]
[SourceQuality "1"]
[TimeControl "40/5400+30:1800+30"]

1. e4 {[%emt 0:00:03]} c5 {[%emt 0:04:16]} 2. Nf3 {[%emt 0:00:05]} e6 {[%emt 0:00:09]} 3. d4 {[%emt 0:00:05]} cxd4 {[%emt 0:00:04]} 4. Nxd4 {[%emt 0:00:05]} Nc6 {[%emt 0:00:06]} 5. Nc3 {[%emt 0:00:07]} Qc7 {[%emt 0:00:11]} 6. g3 {[%emt 0:00:25]} a6 {[%emt 0:05:45]} 7. Bg2 {[%emt 0:00:25]} Nge7 {[%emt 0:00:23]} 8. Nb3 {[%emt 0:06:05]} Ne5 {[%emt 0:04:05]} 9. a4 {[%emt 0:10:27]} b6 {[%emt 0:07:21]} 10. O-O {[%emt 0:00:54]} Bb7 {[%emt 0:01:38]} 11. Qe2 {[%emt 0:06:45]} h5 {[%emt 0:05:04]} 12. h3 {[%emt 0:22:40]} Rc8 {[%emt 0:05:42]} 13. f4 {[%emt 0:01:53]} Nc4 {[%emt 0:03:25]} 14. Nd2 {[%emt 0:01:37]} Qc5+ {[%emt 0:19:27]} 15. Rf2 {[%emt 0:02:08]} h4 {[%emt 0:00:42]} 16. g4 {[%emt 0:02:25]} Ng6 {[%emt 0:00:13]} 17. Nxc4 {[%emt 0:13:51]} Qxc4 {[%emt 0:00:06]} 18. e5 {[%emt 0:01:48]} Bxg2 {[%emt 0:12:49]} 19. Kxg2 {[%emt 0:00:23]} Bb4 {[%emt 0:01:31]} 20. Ne4 {[%emt 0:01:25]} O-O {[%emt 0:02:21]} 21. c3 {[%emt 0:02:12]} Be7 {[%emt 0:00:19]} 22. Qxc4 {[%emt 0:00:17]} Rxc4 {[%emt 0:00:06]} 23. Re2 {[%emt 0:25:55]} f5 {[%emt 0:10:31]} 24. exf6 {[%emt 0:00:00]} gxf6 {[%emt 0:01:07]} 25. f5 {[%emt 0:00:00]} exf5 {[%emt 0:02:40]} 26. gxf5 {[%emt 0:00:00]} d5 {[%emt 0:00:28]} 27. fxg6 {[%emt 0:00:00]} dxe4 {[%emt 0:06:37]} 28. Be3 {[%emt 0:00:00]} f5 {[%emt 0:01:16]} 29. Bxb6 {[%emt 0:00:00]} Rc6 {[%emt 0:03:33]} 30. Bd4 {[%emt 0:00:00]} Rxg6+ {[%emt 0:00:04]} 31. Kf2 {[%emt 0:00:00]} Rg3 {[%emt 0:01:21]} 32. Rg1 {[%emt 0:00:00]} Bd6 {[%emt 0:00:09]} 33. b4 {[%emt 0:01:49]} Kf7 {[%emt 0:02:17]} 34. b5 {[%emt 0:00:27]} axb5 {[%emt 0:00:03]} 35. axb5 {[%emt 0:00:07]} Rf3+ {[%emt 0:01:20]} 36. Ke1 {[%emt 0:00:42]} Bg3+ {[%emt 0:00:31]} 37. Kd1 {[%emt 0:01:36]} Ke6 {[%emt 0:00:34]} 38. Kc2 {[%emt 0:00:19]} Kd5 {[%emt 0:00:36]} 39. Ra1 {[%emt 0:01:40]} Rd3 {[%emt 0:00:29]} 40. b6 {[%emt 0:00:00]} Kc6 {[%emt 0:00:00]} 41. Kb3 {[%emt 0:06:17]} Bb8 {[%emt 0:23:08]} 42. Kc4 {[%emt 0:03:30]} Rxh3 {[%emt 0:02:03]} 43. b7 {[%emt 0:02:02]} Rd3 {[%emt 0:04:08]} 44. Rb2 {[%emt 0:02:33]} Rxd4+ {[%emt 0:01:10]} 45. cxd4 {[%emt 0:00:07]} f4 {[%emt 0:01:30]} 46. Ra6+ {[%emt 0:05:42]} Kd7 {[%emt 0:00:44]} 47. Rg2 {[%emt 0:00:39]} Rf7 {[%emt 0:01:04]} 48. Rg8 {[%emt 0:00:16]} Kc7 {[%emt 0:00:37]} 49. Ra8 {[%emt 0:02:14]} f3 {[%emt 0:00:06]} 50. Rgxb8 {[%emt 0:01:11]} h3 {[%emt 0:00:54]} 51. Rh8 {[%emt 0:06:00]} Kxb7 {[%emt 0:00:02]} 52. Ra1 {[%emt 0:00:07]} e3 {[%emt 0:01:07]} 53. Kd3 {[%emt 0:00:25]} Re7 {[%emt 0:00:10]} 54. Re1 {[%emt 0:05:49]} e2 {[%emt 0:00:29]} 55. Rf8 {[%emt 0:00:04]} h2 {[%emt 0:00:22]} 56. Kd2 {[%emt 0:00:08]} Rh7 {[%emt 0:01:04]} 57. Rh1 {[%emt 0:00:05]} Rg7 {[%emt 0:00:28]} 58. Rxf3 {[%emt 0:00:55]} e1=Q+ {[%emt 0:00:33]} 59. Kxe1 {[%emt 0:00:19]} Rg1+ {[%emt 0:00:18]} 60. Rf1 {[%emt 0:00:04]} Rg2 {[%emt 0:00:02]} 61. Rf7+ {[%emt 0:02:04]} Kc6 {[%emt 0:00:02]} 62. Rhf1 {[%emt 0:00:13]} Ra2 {[%emt 0:01:10]} 63. Rh7 {[%emt 0:00:12]} Kd5 {[%emt 0:00:49]} 64. Rf5+ {[%emt 0:00:09]} Kxd4 {[%emt 0:00:29]} 65. Rfh5 {[%emt 0:00:07]} Ke3 {[%emt 0:00:11]} 66. Rh3+ {[%emt 0:00:03]} 1-0